Cogmind - Beta 14 @@@ ROGUE MODE // 2024.11.02 @ 17:37:35 Player: MadBadger Result: Destroyed by I9-H9R(R) with Subdweller Machine Gun Performance ------------- Evolutions (0) 0 Regions Visited (2) 400 Robots Destroyed (21) 105 Value Destroyed (555) 555 Prototype IDs (0) 0 Alien Tech Used (0) 0 Bonus (0) 0 TOTAL SCORE: 1060 Bonus ------- None Cogmind --------- Core Integrity 0/250 Matter 284/300 Energy 100/100 System Corruption 0% Temperature Cool (0) Movement Treading (240) Ox1 Location -10/Subcaves Parts ------- > --- POWER (1) -------- (None) > --- PROPULSION (2) --- Light Treads > --- UTILITY (2) ------ Large Storage Unit > --- WEAPON (2) ------- Heavy Assault Rifle Heavy Assault Rifle > --- INVENTORY (15) --- Light Ion Engine Light Ion Engine Light Ion Engine Aluminum Leg Aluminum Leg Small Storage Unit Spread Laser Spread Laser Spread Laser Spread Laser Assault Rifle Light Assault Rifle Heavy Assault Rifle Datajack Peak State ------------ > --- POWER ------------ Ion Engine > --- PROPULSION ------- Light Treads Light Treads > --- UTILITY ---------- Large Storage Unit Shield Generator > --- WEAPON ----------- Heavy Assault Rifle Heavy Assault Rifle > --- INVENTORY -------- Light Ion Engine Light Ion Engine Light Ion Engine Aluminum Leg Aluminum Leg Small Storage Unit Spread Laser Spread Laser Spread Laser Spread Laser Assault Rifle Light Assault Rifle Heavy Assault Rifle Heavy Assault Rifle Datajack [Rating: 12] Favorites ----------- Power Ion Engine Engine Ion Engine Propulsion Light Treads Treads Light Treads Utility Large Storage Unit Device Shield Generator Storage Large Storage Unit Weapon Heavy Assault Rifle Energy Gun Medium Laser Ballistic Gun Heavy Assault Rifle Build | -11 -10 -10 ------- Run | Yrd Mat Sub Slots Evolved . | . . . Power . | . . . Propulsion . | . . . Utility . | . . . Weapon . | . . . Parts Attached 17 | 6 10 1 Power 2 | 1 1 . Engine 2 | 1 1 . Core . | . . . Reactor . | . . . Propulsion 3 | 2 1 . Treads 3 | 2 1 . Leg . | . . . Wheel . | . . . Hover . | . . . Flight . | . . . Utility 4 | 1 3 . Device 2 | . 2 . Storage 2 | 1 1 . Processor . | . . . Hackware . | . . . Protection . | . . . Artifact . | . . . Weapon 8 | 2 5 1 Energy Gun 1 | . 1 . Energy Cannon . | . . . Ballistic Gun 7 | 2 4 1 Ballistic Cannon . | . . . Launcher . | . . . Special Weapon . | . . . Impact Weapon . | . . . Slashing Weapon . | . . . Piercing Weapon . | . . . Special Melee Weapon . | . . . Unidentified Prototypes . | . . . Parts Lost 7 | . 3 4 Power 1 | . . 1 Propulsion 2 | . 1 1 Utility 1 | . . 1 Weapon 3 | . 2 1 Highest Loss Streak 3 | . 2 3 To Critical Strikes . | . . . Average Slot Usage (%) 88 | . 90 84 Engine 13 | . 14 11 Treads 22 | . 23 19 Device 10 | . 10 11 Storage 14 | . 14 14 Ballistic Gun 26 | . 26 25 Peak Build Rating 12 | 6 12 12 Average Rating 8 | 4 7 10 On Entrance 6 | . 6 12 Naked Turns . | . . . Heaviest Build 33 | 12 33 33 Greatest Support 40 | 40 40 40 Greatest Overweight (x) 1 | . 1 1 Average Overweight (x) . | . . . Largest Inventory Capacity 15 | 8 15 15 Average Capacity 14 | 6 14 15 Most Carried 15 | 4 15 15 Average Carried 10 | 2 8 14 Final Capacity 15 | 8 15 15 Final Carried 15 | 4 15 14 Class Distribution -------------------- 100% | Mutant Dominant Class ---------------- Mutant | -10/Materials Mutant | -10/Subcaves Resources | -11 -10 -10 ----------- Run | Yrd Mat Sub Matter Collected 734 | 207 398 129 Remotely . | . . . Salvage Created 747 | . 471 276 Parts 39 | . 25 14 Haulers Intercepted . | . . . Recyclers Shooed 1 | . 1 . Parts Field Recycled . | . . . Retrieved Matter . | . . . Parts Self-Destructed 5 | . . 5 Prevented . | . . . Kills | -11 -10 -10 ------- Run | Yrd Mat Sub Combat Hostiles Destroyed 18 | . 12 6 Guns 18 | . 12 6 Classes Destroyed 5 | . 4 1 Recycler 1 | . 1 . Watcher 2 | . 2 . Swarmer 6 | . 6 . Grunt 6 | . 6 . Subdweller 6 | . . 6 Best Kill Streak 3 | . 3 2 Combat Bots Only 2 | . 2 2 Max Kills in Single Turn 1 | . 1 1 Gunslinging . | . . . Exploded . | . . . Melee . | . . . Uniques/NPCs Destroyed . | . . . Combat | -11 -10 -10 -------- Run | Yrd Mat Sub Hostile Shots Fired 129 | . 87 42 Missed 34 | . 20 14 Damage Taken 1199 | . 712 487 Core 260 | . 144 116 Absorbed by Shields 148 | . . 148 Core Remaining (%) 100 | 100 . . Volleys Fired 86 | . 68 18 Largest 2 | . 2 2 Hottest 70 | . 70 46 Shots Fired 150 | . 119 31 Gun 150 | . 119 31 Cannon . | . . . Launcher . | . . . Special . | . . . Kinetic 141 | . 110 31 Thermal 9 | . 9 . Explosive . | . . . Electromagnetic . | . . . Robot Hit Streak 7 | . 7 7 Robot Miss Streak 4 | . 4 1 Penetration Max . | . . . Secondary Targets 3 | . 2 1 Max Gunslinging Chain 1 | . 1 1 Shots Hit Robots 80 | . 56 24 Core Hits 38 | . 25 13 Critical Kills . | . . . Critical Parts Destroyed 1 | . 1 . Critical Strikes 2 | . 2 . Burn 1 | . 1 . Destroy 1 | . 1 . Melee Attacks . | . . . Impact . | . . . Slashing . | . . . Piercing . | . . . Sneak Attacks . | . . . Combat Hostiles . | . . . Follow-up Attacks . | . . . Damage Inflicted 1062 | . 698 364 Guns 1059 | . 698 361 Cannons . | . . . Explosions . | . . . Melee . | . . . Ramming 3 | . . 3 Kinetic 1009 | . 648 361 Thermal 50 | . 50 . Explosive . | . . . Electromagnetic . | . . . Impact . | . . . Slashing . | . . . Piercing . | . . . Highest Corruption . | . . . Average Corruption . | . . . Corruption Purged . | . . . Corruption Blocked . | . . . Overload Shots . | . . . Overflow Damage . | . . . Projectiles . | . . . Explosions . | . . . Melee . | . . . Knockbacks . | . . . Impact . | . . . Kinetic . | . . . Secondary . | . . . Self-Inflicted Damage . | . . . Shots . | . . . Rammed 1 | . . 1 Targets Rammed 1 | . . 1 Kicked . | . . . Crushed . | . . . Highest Temperature 78 | . 78 . Average Temperature 23 | . 23 . Received Heat Transfer 323 | . 273 50 Siege Activations . | . . . Robots Corrupted . | . . . Combat Hostiles . | . . . Parts Fried . | . . . Impact Corruptions . | . . . Robots Melted . | . . . Combat Hostiles . | . . . Parts Melted 1 | . 1 . Heat Transferred 222 | . 222 . Parts Sabotaged . | . . . Parts Stolen . | . . . Parts Stripped . | . . . Power Chain Reactions . | . . . Alert | -11 -10 -10 ------- Run | Yrd Mat Sub Peak Influence 265 | . 265 . Initial . | . . . Average 103 | . 108 . Maximum Alert Level 1 | . 1 . Low Security (%) 83 | 100 83 . Level 1 16 | . 16 . Level 2 . | . . . Level 3 . | . . . Level 4 . | . . . Level 5 . | . . . High Security . | . . . Max Security . | . . . Squads Dispatched 4 | . 4 . Investigation 1 | . 1 . Extermination . | . . . Reinforcement 3 | . 3 . Assault . | . . . Garrison . | . . . Intercept . | . . . Searches Triggered . | . . . Construction Impeded . | . . . Haulers Reinforced . | . . . Active Scanning Responses . | . . . Cargo Convoy Interrupts . | . . . Stealth | -11 -10 -10 --------- Run | Yrd Mat Sub Distress Signals 1 | . 1 . Communications Jammed . | . . . Distress Signals . | . . . Times Spotted 33 | . 26 7 Peak Tracking Total 4 | . 4 2 Tactical Retreats 5 | . 5 . Traps | -11 -10 -10 ------- Run | Yrd Mat Sub Traps Triggered 2 | . 1 1 Indirectly . | . . . Trap Hack Attempts . | . . . Triggered . | . . . Disarmed . | . . . Reprogrammed . | . . . Reused . | . . . Traps Extracted . | . . . Installed . | . . . Triggered . | . . . Machines | -11 -10 -10 ---------- Run | Yrd Mat Sub Machines Disabled . | . . . Max in Single Turn . | . . . Machines Repaired . | . . . Machines Dismantled . | . . . Machines Sabotaged . | . . . Overloaded Fab Kills . | . . . Hacking | -11 -10 -10 --------- Run | Yrd Mat Sub Machines Accessed 1 | . 1 . Terminals 1 | . 1 . Fabricators . | . . . Repair Stations . | . . . Recycling Units . | . . . Scanalyzers . | . . . Garrison Access . | . . . Total Hacks 1 | . 1 . Successful 1 | . 1 . Failed . | . . . Catastrophic . | . . . Database Lockouts . | . . . Manual . | . . . Terminals 1 | . 1 . Fabricators . | . . . Repair Stations . | . . . Recycling Units . | . . . Scanalyzers . | . . . Garrison Access . | . . . Terminal Hacks 1 | . 1 . Zone Layout 1 | . 1 . Fabricator Hacks . | . . . Repair Station Hacks . | . . . Recycling Unit Hacks . | . . . Scanalyzer . | . . . Garrison Access Hacks . | . . . Unauthorized Hacks . | . . . Terminals . | . . . Fabricators . | . . . Repair Stations . | . . . Recycling Units . | . . . Scanalyzers . | . . . Garrison Access . | . . . Data Cores Recovered . | . . . Used . | . . . Hacking Detections . | . . . Full Trace Events . | . . . Feedback Events . | . . . Feedback Blocked . | . . . Robot Schematics Acquired . | . . . Robots Built . | . . . Authchips . | . . . Time . | . . . Total Robot Build Rating . | . . . Part Schematics Acquired . | . . . Parts Built . | . . . Authchips . | . . . Time . | . . . Total Part Build Rating . | . . . Parts Repaired . | . . . Time . | . . . Parts Recycled . | . . . Recycled Matter . | . . . Retrieved Matter . | . . . Retrieved Components . | . . . Parts Scanalyzed . | . . . Part Schematics Acquired . | . . . Parts Damaged . | . . . Bothacking | -11 -10 -10 ------------ Run | Yrd Mat Sub Used RIF Installer . | . . . Robots Hacked . | . . . Non-combat . | . . . Combat . | . . . Robot Hacks Applied . | . . . Relay Couplers Released . | . . . Fabnet Peak Effective % . | . . . Robots Rewired . | . . . Allies Hacked . | . . . Hacks Repelled . | . . . Allies | -11 -10 -10 -------- Run | Yrd Mat Sub Total Allies . | . . . Largest Group . | . . . Highest-Rated Group . | . . . Highest-Rated Ally . | . . . Total Orders . | . . . Ally Attacks . | . . . Total Damage . | . . . Kills . | . . . Allies Corrupted . | . . . Allies Melted . | . . . Intel | -11 -10 -10 ------- Run | Yrd Mat Sub Robot Analysis Total . | . . . Derelict Logs Recovered . | . . . Drone Launches . | . . . Drone Recoveries . | . . . Exploration | -11 -10 -10 ------------- Run | Yrd Mat Sub Turns Passed 2579 | 77 1534 968 Spaces Moved 1209 | 42 715 452 Core 2 | 2 . . Treads 1207 | 40 715 452 Legs . | . . . Wheels . | . . . Hover . | . . . Flight . | . . . Fastest Speed 50 | 50 160 160 Average Speed 185 | 154 178 199 Slowest Speed 240 | 160 240 240 Overloaded Moves . | . . . Propulsion Burnouts . | . . . Robots Hopped . | . . . Cave-ins Triggered . | . . . Exploration Rate (%) 36 | 4 84 22 Regions Visited 2 Branch Regions 1 Pre-discovered Areas . | . . . Known Exits Taken . | . . . Unknown Exits Taken 2 | 1 1 . Scrap Searched 1 | . . 1 Spaces Dug . | . . . Terrain Destroyed . | . . . Melee . | . . . Projectile . | . . . AOE . | . . . Terrain Rammed . | . . . Walls Destroyed . | . . . Machines Disabled . | . . . Actions | -11 -10 -10 --------- Run | Yrd Mat Sub Total 1393 | 51 860 482 Wait 61 | . 51 10 Move 1207 | 41 714 452 Hop . | . . . Pick Up 14 | 4 10 . Fast Attach 13 | 6 7 . Attach 3 | . 2 1 Detach 4 | . 4 . Swap 1 | . 1 . Drop 3 | . 3 . Fire 86 | . 68 18 Melee . | . . . Ram . | . . . Kick . | . . . Crush 1 | . . 1 Escape Stasis . | . . . Rewire . | . . . Trap . | . . . Miscellaneous . | . . . Route ------- -11/Scrapyard -10/Materials (discovered 4 exits: [*Mat x2] / [*Min] / [*Sub]) -10/Subcaves (discovered 1 exit: [*Mat]) History --------- Turn | Location | Event 20 | -11/Scrapyard | Discovered new exit (range 16) 78 | -11/Scrapyard | Entered Materials 308 | -10/Materials | Build established: Mutant 508 | -10/Materials | Discovered new exit (range 16) 668 | -10/Materials | Discovered new exit (range 12) 926 | -10/Materials | Core integrity fell below 50% 1359 | -10/Materials | Discovered new exit (range 15) 1585 | -10/Materials | Discovered new exit (range 13) 1612 | -10/Materials | Entered Subcaves 1622 | -10/Subcaves | Discovered new exit (range 16) 1825 | -10/Subcaves | Ambushed by Subdwellers from Twisted Machinery 1871 | -10/Subcaves | Core integrity fell below 20% 2470 | -10/Subcaves | Lost 3 parts (1p1u1w) 2580 | -10/Subcaves | Destroyed by I9-H9R(R) with Subdweller Machine Gun Last Messages --------------- 02008_ Lgt. Treads destroyed. 02010_ E9-X0D(R) destroyed. 02010_ Switching to secondary target: 9O-EIR(R). 02019_ 9O-EIR(R) destroyed. 02020_ Acquired 30 matter. 02024_ Acquired 7 matter. 02298_ Slammed into SO-2UO(O). 02413_ A8-49A(R): "RAGEQUIT!" 02414_ Hvy. Assault Rifle destroyed. 02433_ Ion Engine destroyed. 02438_ A8-49A(R) destroyed. 02439_ Shield Generator destroyed. 02442_ CA-65Z(R) destroyed. 02456_ Acquired 10 matter. 02514_ Searching scrap... 02514_ Found Sub. Monowheel. 02514_ Found 64 Matter. 02550_ Triggered Piercing Trap. 02550_ Spikes shoot up from the floor. 02550_ Critical hit (Impale). Map ----- +----------------------------------------------------+ | ?????????????????????? #????? | | ?????????????????????? ????? | | ????????????????????? ????? | | ????????????????????? ####? | | ????????????????????? #? | | ?????????????????????? ## | | ?????????????????????? ## | | ??????????????????????# ## | | ?????????????????????## ## | | ?????????????????????# ?? | | ?????????????????????# #?? | | ?????????????????????# ##? | | ??????????????????###?# ## | | ??????????????????# ### ### | | ??????????????????# ## ## | | ???????###?????#### &! | | ????###< #?##### =%* | | ????#<< "??#="### &% | | ???## $ $??# % ## ## | | ???#< ???#"& ## ### | | ???#< $ ???#" "# #?# | | ???#< ????## ## ## | | ???# ????# #" #### | | ???# R#????# # #??## | | ???# #????# ## #??# | | ???# @#??### #"" ## #??# | | ???#< ##?# " ###" ##??## | | ???#< <### " "## ##?????# | | ???##< # ## #??????? | | ????##<< "##""## #?????? | | ?????#######?## ????? | | ???????????????# ##### ???? | | ????????????????###????# ??? | | ????????????????????????? ??? | | ?????????????????????????? ??? | | ?????????????????????????????? | | ?????????????????????????????? | | ?????????????????????????????? | | ?????????????????????????????? | | ?????????????????????????????? | | ?????????????????????????????? | | ?????????????????????????????? | | ?????????????????????????????? | | ?????????????????????????????? | | ?????????????????????????????? | | ?????????????????????????????? | | ?????????????????????????????? | | ?????????????????????????????? | | ?????????????????????????????? | | ?????????????????????????????? | +----------------------------------------------------+ Best States ------------- Heat Dissipation 25 Energy Generation 10 Energy Capacity 250 Matter Stores 300 Matter Capacity 300 Sight Range 16 Terrain Scan Density 10 Evasion (%) 40 Recoil Reduction 2 Item Schematics ----------------- None Robot Schematics ------------------ None Fabricated ------------ Nothing Alien Tech Used ----------------- None Achievements -------------- None Challenges ------------ None Game ------ Seed PowerCloakCompanion Manual? 0 Play Time 00:13:40 Cumulative 17.6 hours Start 2024.11.02 @ 17:23:04 End 2024.11.02 @ 17:37:35 Sessions 1 Manual Loads 0 Difficulty Rogue Special Mode None Game No. 33 Rogue 33 Adventurer 0 Explorer 0 Win Type - Total 0 Types 0/0/0/0/0/0/0/0/0 Lore% 7 Gallery% 12 Achievement% 14 Wizard Run 0 Options --------- Layout 0 ASCII 0 Keyboard 1 Movement Numpad Keybinds 0 Fullscreen 1 Font 24/Smallcaps Map View 76x50 Zoom Use 0% Tactical HUD 1 Map Filters NONE Filters NONE Steam 1 RUN: 356b3aa0-c111-43e2-9b37-cbe0332046d0